{"text_format":"3","workbook":"xlsx","n_sheets":2,"sheets":["Ausgaben-u.Finanzierungsplan17","Personalausgaben17"],"not_rendered":{"defined_names":2,"comments":2},"read":"whole","date_system":"1900"}

{"sheet":"Ausgaben-u.Finanzierungsplan17","index":0,"n_rows":38,"n_cols":17,"rows_kept":38,"merged":[[1,0,1,15],[4,4,4,8],[4,10,4,11],[4,12,4,15],[6,4,6,15],[8,4,8,15],[11,0,13,3],[11,4,11,7],[11,8,11,11],[11,12,11,15],[12,4,12,7],[12,8,12,11],[12,12,12,15],[13,4,13,7],[13,8,13,11],[13,12,13,15],[15,0,16,3],[15,4,15,7],[15,8,15,11],[15,12,15,15],[16,4,16,7],[16,8,16,11],[16,12,16,15],[17,0,17,3],[17,4,17,7],[17,8,17,11],[17,12,17,15],[18,0,18,3],[18,4,18,7],[18,8,18,11],[18,12,18,15],[19,0,19,3],[19,4,19,7],[19,8,19,11],[19,12,19,15],[20,0,20,3],[20,4,20,7],[20,8,20,11],[20,12,20,15],[21,0,21,3],[21,4,21,7],[21,8,21,11],[21,12,21,15],[22,16,23,20],[23,0,24,3],[23,4,23,7],[23,8,23,11],[23,12,23,15],[24,4,24,7],[24,8,24,11],[24,12,24,15],[26,0,27,3],[26,4,26,7],[26,8,26,11],[26,12,26,15],[27,4,27,7],[27,8,27,11],[27,12,27,15],[28,0,28,15],[29,0,30,15],[33,0,33,4],[33,12,33,15]]}
["Landeshauptstadt Dresden - Jugendamt",{"$nulls":14},"Zuwendungsbescheid 2017"]
["Ausgaben- und Finanzierungsplan für das Jahr 2017"]
["PC-Ausfüller: Fett umrandete Felder ausfüllen! Die anderen Felder enthalten Zellenverknüpfungen oder Formeln."]
[]
["Aktenzeichen:",{"$nulls":9},"Termin:",null,"1 Monat nach Bekanntgabe des Zuwendungsbescheides"]
[]
["Zuwendungsempfänger:"]
[]
["Angebotsbezeichnung:"]
[]
[]
["Ausgaben",{"$nulls":3},"Sachausgaben",{"$nulls":3},"Personalausgaben",{"$nulls":3},"Gesamtausgaben"]
[{"$nulls":4},"in Euro",{"$nulls":3},"in Euro",{"$nulls":3},"in Euro"]
[{"$nulls":8},{"$f":"Personalausgaben17!F17","v":0},{"$nulls":3},{"$f":"SUM(E14:L14)","v":0}]
[]
["Finanzierung",{"$nulls":3},"Sachausgaben",{"$nulls":3},"Personalausgaben",{"$nulls":3},"Finanzierung gesamt"]
[{"$nulls":4},"in Euro",{"$nulls":3},"in Euro",{"$nulls":3},"in Euro"]
["Jugendamt Dresden",{"$nulls":7},{"$f":"Personalausgaben17!G17","v":0},{"$nulls":3},{"$f":"I18+E18","v":0}]
["weitere öffentliche Mittel*",{"$nulls":11},{"$f":"SUM(E19:L19)","v":0}]
["sonstige Finanzierungsquellen",{"$nulls":11},{"$f":"SUM(E20:L20)","v":0}]
["Eigenmittel",{"$nulls":11},{"$f":"SUM(E21:L21)","v":0}]
["gesamt",{"$nulls":3},{"$f":"SUM(E18:G21)","v":0},{"$nulls":3},{"$f":"SUM(I18:K21)","v":0},{"$nulls":3},{"$f":"SUM(E22:L22)","v":0}]
[{"$nulls":7},{"$f":"IF(E14<>E22,\"Fehler: Ausgaben ungleich Finanzierung\",\"\")","v":""},{"$f":"IF(I14<>I22,\"Fehler: Ausgaben ungleich Finanzierung\",\"\")","v":""},{"$nulls":7},"Fehlermeldung erst nach dem Ausfüllen beachten!"]
["Eigenleistungen",{"$nulls":3},"Anzahl der Stunden",{"$nulls":3},{"v":8.5,"d":"8.50 €"},{"$nulls":3},"in EUR"]
[{"$nulls":8},"je Stunde",{"$nulls":3},{"$f":"E25*I24","v":0}]
[]
["Eigenanteil an den Gesamtausgaben",{"$nulls":3},"Eigenmittel in %",{"$nulls":3},"Eigenleistungen in %",{"$nulls":3}," = Eigenanteil in %"]
[{"$nulls":4},{"$f":"ROUND(M21*100/M14,1)","v":{"$error":"#DIV/0!"}},{"$nulls":3},{"$f":"ROUND(M25*100/(M14+M25),1)","v":{"$error":"#DIV/0!"}},{"$nulls":3},{"$f":"ROUND((M25+M21)*100/(M14+M25),1)","v":{"$error":"#DIV/0!"}}]
["* sofern neben der Zuwendung weitere öffentliche Mittel  in die Finanzierung dieses Projektes einfließen, sind diese im Folgefeld darzustellen: für wen/was und in welcher Höhe (z. B. vom Landesjugendamt, KSV, SMS, SMK, Bund, ARGE, EU, LHD)"]
[]
[]
[]
[]
[]
["Ort, Datum",{"$nulls":5},"rechtsverbindliche Unterschrift(en) ",{"$nulls":5},"in Block-/PC-Schrift:"]
["Anlagen"]
["Personalausgaben (sofern gefördert)"]
["(siehe folgendes Tabellenblatt)"]

{"sheet":"Personalausgaben17","index":1,"n_rows":18,"n_cols":7,"rows_kept":18,"merged":[[3,0,4,0],[3,1,4,1],[3,2,4,2],[3,3,3,4],[3,5,4,5],[3,6,4,6],[13,0,13,4],[13,5,14,5],[13,6,14,6],[17,0,17,6]]}
["Landeshauptstadt Dresden - Jugendamt",null,"Anlage zum Ausgaben- und Finanzierungsplan 2017",null,null,"Aktenzeichen:",{"$f":"'Ausgaben-u.Finanzierungsplan17'!E5","v":0}]
[]
["Angaben zum Personal (geförderte Fachkräfte) 2017"]
["Name, Vorname*","Stellenbezeichnung","beschäftigt von/bis          \n(im Jahr 2017)","wöch. Arbeitszeit in Stunden",null,"Gesamtausgaben \nin EUR","Fördermitteleinsatz\nin EUR"]
[{"$nulls":3},"Wochenarbeitszeit ","Jahres-      durch-        schnitt"]
{"$rows_empty":8}
["Berufsgenossenschaft gesamt"]
[{"$nulls":4}," (betrifft in der Regel das Vorjahr, fällt jedoch im Förderzeitraum nach dem 28.2.17 an)"]
[{"$nulls":3},"h/W","VK"]
[null,null,"Summe",{"$f":"SUM(E6:E13)","v":0},{"$f":"ROUND(D17/40,2)","v":0},{"$f":"SUM(F6:F14)","v":0},{"$f":"SUM(G6:G14)","v":0}]
["*Entsprechen die aufgeführten Beschäftigten nicht den Personen im Antrag bzw. ergeben sich Änderungen, sind das Formblatt „Angaben zur geförderten Fachkraft“ und eine Kopie des Qualifikationsnachweises (mit Bestätigung der Übereinstimmung mit dem Original) mit dem Ausgaben- und Finanzierungsplan im Jugendamt einzureichen."]